[Event "1st Kallai Gabor Memorial Blitz 2022"]
[Site "Budapest"]
[Date "2022.12.01"]
[Round "1.1"]
[White "Motylev, Alexander"]
[Black "Bjerre, Jonas Buhl"]
[Result "1-0"]
[ECO "B52"]
[WhiteElo "2628"]
[BlackElo "2622"]
[Annotator "TA"]
[PlyCount "97"]
[EventDate "2022.12.01"]
[EventType "blitz"]
[EventCountry "HUN"]
[SourceTitle "playchess.com"]
[Source "ChessBase"]
[SourceQuality "1"]
[TimeControl "300+3"]

{[%evp 10,97,11,20,4,12,15,6,20,10,13,0,0,0,0,4,23,0,15,9,14,12,8,0,25,41,161,171,243,236,251,240,236,245,386,234,380,228,223,140,129,100,125,0,0,0,0,0,0,-7,-6,-6,0,0,0,0,0,-7,-8,-9,0,-49,-47,-65,-60,-66,0,0,0,0,0,0,0,0,0,0,609,157,12843,12843,12844,12844,12845,12845,12845,12846,12846,12847,12849,12849]} 1. e4 {[%emt 0:00:06]} c5 {[%emt 0:00:04]} 2. Nf3 {[%emt 0:00:01]} d6 {[%emt 0:00:01]} 3. Bb5+ {[%emt 0:00:02]} Bd7 {[%emt 0:00:01]} 4. Bxd7+ {[%emt 0:00:03]} Nxd7 {[%emt 0:00:01]} 5. c3 {[%emt 0:00:04]} Ngf6 {[%emt 0:00:02][%cal Bg8f6,Bf6d5,Bd5b4][%mdl 32]} 6. Qe2 {[%emt 0:00:02]} e6 {[%emt 0:00:01] B50: Sicilian: 2...d6, Miscellaneous.} 7. d4 $1 {[%emt 0:00:02] 7.d4 is better than 7.0-0.} Be7 {[%emt 0:00:02]} 8. e5 {[%emt 0:00:02]} dxe5 {[%emt 0:00:04] The position is equal.} (8... Nd5 {feels hotter.} 9. c4 Qa5+ 10. Bd2 Nb4) 9. dxe5 {[%emt 0:00:02]} Nd5 {[%emt 0:00:02]} 10. c4 {[%emt 0:00:01]} Nb4 {[%emt 0:00:04]} 11. O-O {[%emt 0:00:04]} O-O {[%emt 0:00:09]} 12. Nc3 {[%emt 0:00:02]} Nc6 {[%emt 0:00:17]} 13. Bf4 {[%emt 0:00:21]} a6 {[%emt 0:00:24]} 14. Rad1 {[%emt 0:00:07]} Qc7 {[%emt 0:00:02] [#]} 15. Ne4 $146 {[%emt 0:00:05]} ({Predecessor:} 15. h4 Rfd8 16. h5 h6 17. g3 Nf8 18. Kg2 Rxd1 19. Rxd1 Rd8 20. Rxd8 Qxd8 21. Qe4 {½-½ (30) Chang,S (2087)-Carstens Dobuchak,T (2149) Brasilia 2016}) 15... Rfd8 {[%emt 0:01:44]} 16. h4 {[%emt 0:00:03]} h6 {[%emt 0:00:04][%cal Rd7e5]} 17. Qe3 {[%emt 0:00:16]} Nf8 {[%emt 0:00:14]} ({Black should play} 17... b5 $14) 18. Nf6+ $1 $18 {[%emt 0:01:40]} (18. Nxc5 Nb4 19. Na4 Nxa2 $15) 18... Kh8 {[%emt 0:00:50] [#]} (18... gxf6 {might work better.} 19. exf6 (19. Bxh6 $2 Nxe5 20. Nxe5 Qxe5 $19) 19... e5 20. fxe7 Qxe7) 19. Bxh6 $1 {[%emt 0:00:58][%cal Bf4h6,Bh6f8,Bf8c5,Bc5e3][%mdl 544]} gxf6 {[%emt 0:00:02]} 20. exf6 {[%emt 0:00:10] White threatens Bg7+ and mate.} Bxf6 {[%emt 0:00:26] Threatens to win with ...Rxd1.} 21. Bxf8 {[%emt 0:00:03]} (21. Qxc5 e5 22. Bxf8 Rxf8 $17) 21... Bxb2 {[%emt 0:00:20]} (21... Rxf8 {was necessary.} 22. Qh6+ (22. Qxc5 $2 Kg7 $19) 22... Kg8) 22. Qh6+ {[%emt 0:00:37]} Kg8 {[%emt 0:00:01] [#] Hoping for ...Rxd1.} 23. Ng5 $1 {[%emt 0:00:08]} Qf4 24. Bxc5 {[%csl Gg5][%cal Rh6h7] Really sharp!} (24. Rxd8 Rxd8 25. Bxc5 Qf5 $16) 24... Qf5 {[%emt 0:00:19] Inhibits Qh7+.} 25. Be3 {[%emt 0:00:56][%cal Og2g4]} Ne5 {[%emt 0:00:18] [#] Inhibits g4.} 26. f3 {[%emt 0:00:07] Against Ng4} (26. Ne4 $1 $16 {[%mdl 512]} Ng4 27. Qg5+ Qxg5 28. Bxg5) 26... Nxc4 $11 {[%emt 0:00:10]} 27. Bf2 {[%emt 0:00:06]} Bg7 {[%emt 0:00:07] Inhibits g4.} 28. Qh5 {[%emt 0:00:02]} Ne5 {[%emt 0:00:03]} 29. Bb6 {[%emt 0:00:13]} Rxd1 {[%emt 0:00:07]} 30. Rxd1 {[%emt 0:00:01]} f6 {[%emt 0:00:09] ...Rf8 is the strong threat.} 31. f4 $1 {[%emt 0:00:01]} fxg5 {[%emt 0:00:08]} 32. fxe5 {[%emt 0:00:02]} gxh4 {[%emt 0:00:08]} 33. Qxf5 {[%emt 0:00:04]} exf5 {[%emt 0:00:00][%mdl 4096] Endgame KRB-KRB} 34. e6 {[%emt 0:00:03]} Re8 {[%emt 0:00:01]} 35. Re1 {[%emt 0:00:01]} (35. Rd8 $11 {should be considered.} Rxd8 36. Bxd8) 35... Bf6 $15 {[%emt 0:00:07]} 36. Kf2 {[%emt 0:00:02]} Rc8 {[%emt 0:00:04]} 37. Kf3 {[%emt 0:00:01]} Kf8 {[%emt 0:00:08]} (37... Kg7 $1 $15) 38. Kf4 $11 {[%emt 0:00:01]} Rc6 {[%emt 0:00:03]} 39. Bg1 {[%emt 0:00:09]} Rc2 {[%emt 0:00:02][%csl LRa2,LRg2]} 40. Kxf5 {[%emt 0:00:02]} Be7 {[%emt 0:00:03]} 41. Be3 {[%emt 0:00:04]} Rxg2 {[%emt 0:00:03]} 42. Rc1 {[%emt 0:00:01]} Bd6 $2 {[%emt 0:00:08][%mdl 8192]} (42... Rxa2 43. Rc8+) (42... Bd8 $11) 43. Bg5 $2 {[%emt 0:00:05]} (43. Rc8+ $18 Ke7 44. Bd4 (44. Bg5+ Rxg5+ 45. Kxg5 Kxe6 $14)) 43... Rf2+ $2 {[%emt 0:00:04] Loses the game.} (43... Rxa2 $2 {is a self mate.} 44. Rc8+ (44. Bxh4 Ra5+ 45. Kg6 Rc5 $18) 44... Kg7 45. Bf6+ Kh7 46. Rh8#) (43... Kg7 $16) 44. Kg6 $18 {[%emt 0:00:01][%cal Rc1c8] White is clearly winning.} Kg8 {[%emt 0:00:02]} 45. e7 {[%emt 0:00:01]} Bxe7 46. Bxe7 {[%emt 0:00:01] White wants to mate with Rc8+.} Rg2+ {[%emt 0:00:01] [#]} 47. Bg5 $1 {[%emt 0:00:02][%cal Rc1c8]} Rf2 {[%emt 0:00:05]} 48. Bxh4 {[%emt 0:00:02]} Rf7 {[%emt 0:00:04]} 49. Bf6 {[%emt 0:00:02] Weighted Error Value: White=0.42/Black=0.31} 1-0

[Event "1st Kallai Gabor Memorial Blitz 2022"]
[Site "Budapest"]
[Date "2022.12.01"]
[Round "1.2"]
[White "Kozak, Adam"]
[Black "Ruck, Robert"]
[Result "1-0"]
[ECO "A37"]
[WhiteElo "2538"]
[BlackElo "2537"]
[Annotator "TA"]
[PlyCount "39"]
[EventDate "2022.12.01"]
[EventType "blitz"]
[EventCountry "HUN"]
[SourceTitle "playchess.com"]
[Source "ChessBase"]
[SourceQuality "1"]
[TimeControl "300+3"]

{[%evp 11,39,0,0,0,23,22,49,5,136,60,218,225,223,210,320,317,349,330,318,288,337,353,494,446,613,615,601,396,1055,1034]} 1. Nf3 {[%emt 0:00:07]} g6 {[%emt 0:00:09]} 2. c4 {[%emt 0:00:08]} Bg7 {[%emt 0:00:02]} 3. Nc3 {[%emt 0:00:03]} c5 {[%emt 0:00:01]} 4. g3 {[%emt 0:00:18]} Nc6 {[%emt 0:00:03]} 5. Bg2 {[%emt 0:00:02]} d6 {[%emt 0:00:05]} 6. d3 {[%emt 0:00:31]} e6 {[%emt 0:00:22]} 7. h4 {[%emt 0:00:06] seems to push 7.0-0 aside. A37: Symmetrical English vs ...g6: 4 Bg2 Bg7 5 Nf3.} h5 {[%emt 0:00:25]} 8. Bg5 {[%emt 0:00:30]} Nge7 {[%emt 0:00:27]} 9. O-O {[%emt 0:00:10] [#] White is slightly better.} b6 $146 {[%emt 0:00:24] [#]} (9... O-O $11 {remains equal.}) ({Predecessor:} 9... O-O 10. a3 a5 11. Qd2 f6 12. Bh6 e5 13. Bxg7 Kxg7 14. Ne1 Be6 15. Nc2 d5 16. cxd5 Nxd5 {½-½ (48) Wang,Y (2723)-Radjabov,T (2713) Beijing 2013}) 10. Ne4 {[%emt 0:00:11] White is more active.} (10. Ne5 $1 $16 {[%cal Re5c6][%mdl 512]} Nxe5 11. Bxa8) 10... d5 $2 {[%emt 0:00:23]} (10... Kf8 $14) 11. Nf6+ $18 {[%emt 0:00:06]} Kf8 {[%emt 0:00:02]} 12. d4 {[%emt 0:00:12]} Ba6 {[%emt 0:00:45]} (12... Qd6 $142 13. Qa4 cxd4) 13. cxd5 {[%emt 0:00:22]} exd5 {[%emt 0:00:03]} 14. dxc5 {[%emt 0:00:45]} bxc5 {[%emt 0:00:03]} 15. Rc1 {[%emt 0:00:02]} c4 {[%emt 0:00:37]} 16. Qa4 {[%emt 0:00:03]} Bc8 {[%emt 0:00:36]} 17. Rfd1 {[%emt 0:00:08][%cal Of6d5] And now Nxd5! would win.} Qd6 {[%emt 0:00:09] [#]} 18. Nxd5 {[%emt 0:00:26][%mdl 512]} Nxd5 {[%emt 0:00:02]} 19. Qxc4 {[%emt 0:00:05]} Nce7 $2 {[%emt 0:01:01] [#]} (19... Be6 20. Qxc6 Qxc6 21. Rxc6 Nb6) 20. Rxd5 $1 {[%emt 0:00:04][%mdl 576] Black got outplayed after the opening.   Weighted Error Value: White=0.28 (precise) /Black=0.97} 1-0

[Event "1st Kallai Gabor Memorial Blitz 2022"]
[Site "Budapest"]
[Date "2022.12.01"]
[Round "1.3"]
[White "Beliavsky, Alexander G"]
[Black "Berkes, Ferenc"]
[Result "1/2-1/2"]
[ECO "D45"]
[WhiteElo "2487"]
[BlackElo "2643"]
[Annotator "TA"]
[PlyCount "53"]
[EventDate "2022.12.01"]
[EventType "blitz"]
[EventCountry "HUN"]
[SourceTitle "playchess.com"]
[Source "ChessBase"]
[SourceQuality "1"]
[TimeControl "300+3"]

{[%evp 21,53,0,0,-39,-30,-38,-26,-34,-19,-26,-3,-11,0,0,0,-6,40,4,0,3,7,6,45,40,71,81,79,-22,53,0,65,-23,62,0]} 1. d4 {[%emt 0:00:05]} d5 {[%emt 0:00:04]} 2. c4 {[%emt 0:00:03]} c6 {[%emt 0:00:01]} 3. Nf3 {[%emt 0:00:05]} Nf6 {[%emt 0:00:01]} 4. Nc3 {[%emt 0:00:02]} a6 {[%emt 0:00:01]} 5. e3 {[%emt 0:00:06]} e6 {[%emt 0:00:02]} 6. Bd3 {[%emt 0:00:28]} dxc4 {[%emt 0:00:05]} 7. Bxc4 {[%emt 0:00:02]} b5 {[%emt 0:00:02]} 8. Bd3 {[%emt 0:00:22]} c5 {[%emt 0:00:06]} 9. a4 {[%emt 0:00:29]} b4 {[%emt 0:00:02]} 10. Ne4 {[%emt 0:00:04]} Nbd7 {[%emt 0:00:02]} 11. O-O {[%emt 0:01:12]} Bb7 {[%emt 0:00:02]} 12. Ng3 {[%emt 0:00:05] D48: Semi-Slav: Meran System: 7...b5 8 Bd3 a6.} Be7 {[%emt 0:00:33]} 13. Qe2 {[%emt 0:00:31]} O-O 14. Rd1 {Black has an edge.} Qb8 {[%emt 0:01:38] [#]} 15. b3 $146 {[%emt 0:00:32]} ({Predecessor:} 15. a5 Rd8 16. Bc4 Qa7 17. b3 Nd5 18. Bb2 Nc3 19. Bxc3 bxc3 20. Rac1 Bxf3 21. Qxf3 cxd4 22. exd4 {½-½ (44) Shkurikhin,I (2380)-Mochalin,F (2173) St Petersburg 2019}) 15... Nd5 {[%emt 0:01:22] [#] Hoping for ...Nc3.} 16. Bb2 {[%emt 0:00:02]} Nc3 {[%emt 0:00:04]} 17. Bxc3 {[%emt 0:00:02]} bxc3 {[%emt 0:00:01]} 18. Qc2 {[%emt 0:00:19][%csl LRc3,LRh7]} Nf6 {[%emt 0:00:32]} (18... g6 $11 {was preferrable.}) 19. Qxc3 {[%emt 0:00:04]} Bxf3 {[%emt 0:00:07]} 20. gxf3 {[%emt 0:00:01]} cxd4 {[%emt 0:00:08]} 21. Qxd4 {[%emt 0:00:02]} Rd8 {[%emt 0:00:18]} 22. Qb2 {[%emt 0:00:01]} Nd5 {[%emt 0:00:02]} 23. Rac1 {[%emt 0:00:36]} Bf6 {[%emt 0:00:01]} 24. Qa3 {[%emt 0:00:01]} (24. Qc2 $16) 24... Be7 {[%emt 0:00:05]} (24... Nc3 $11) 25. Qb2 {[%emt 0:00:00]} Bf6 26. Qa3 ({White should try} 26. Qc2 $14) 26... Be7 {[%emt 0:00:27]} ({Black should play} 26... Nc3 $11) 27. Qb2 {[%emt 0:00:01] Weighted Error Value: White=0.29 (precise) /Black=0.24 (precise)} (27. Qa2 $1 $14) 1/2-1/2

[Event "1st Kallai Gabor Memorial Blitz 2022"]
[Site "Budapest"]
[Date "2022.12.01"]
[Round "1.4"]
[White "Gaal, Zsoka"]
[Black "Borhy, Marcell"]
[Result "0-1"]
[ECO "A06"]
[WhiteElo "2286"]
[BlackElo "2407"]
[Annotator "TA"]
[PlyCount "86"]
[EventDate "2022.12.01"]
[EventType "blitz"]
[EventCountry "HUN"]
[SourceTitle "playchess.com"]
[Source "ChessBase"]
[SourceQuality "1"]
[TimeControl "300+3"]

{[%evp 9,86,20,28,28,33,22,32,39,10,-7,19,35,73,68,64,66,94,99,290,209,189,189,202,160,170,177,160,170,245,272,378,375,444,302,297,291,592,619,619,613,586,512,560,0,0,-63,-58,-78,0,-54,-14,-14,-14,-8,-8,-14,-14,-22,-14,-14,0,-22,6195,-14,-14,-14,-14,-19,0,-129,-101,-129,-20,-129,-129,-137,-137,-746,-649]} 1. Nf3 {[%emt 0:00:05]} d5 {[%emt 0:00:04]} 2. g3 {[%emt 0:00:01]} Nd7 {[%emt 0:00:02]} 3. d4 {[%emt 0:00:02]} b5 {[%emt 0:00:02]} 4. Bg2 {[%emt 0:00:04]} Bb7 {[%emt 0:00:01]} 5. O-O {[%emt 0:00:02]} e6 {[%emt 0:00:01]} 6. a4 {[%emt 0:00:21] D02: 1 d4 d5 2 Nf3 sidelines, including 2...Nf6 3 g3 and 2...Nf6 3 Bf4.} b4 {[%emt 0:00:04]} 7. c4 {[%emt 0:00:07]} c5 {[%emt 0:00:22]} 8. Nbd2 {[%emt 0:00:45] White is slightly better.} Ngf6 {[%emt 0:00:08]} 9. a5 {[%emt 0:00:03]} dxc4 {[%emt 0:00:17]} 10. Nxc4 {[%emt 0:00:04] [#]} cxd4 $146 {[%emt 0:00:32]} ({Predecessor:} 10... Bd5 11. Ne3 Bc6 12. Qb3 Be7 13. Rd1 O-O 14. dxc5 Rb8 15. Ne5 Bxg2 16. Kxg2 Nxc5 {0-1 (34) Alekseenko,M (1880)-Danilyuk,O (1987) Cheliabinsk 2022}) 11. Bf4 {[%emt 0:00:22] Hoping for Nd6+.} (11. Qxd4 {is more complex.} Bd5 12. Bf4 Bc5 13. Nd6+) 11... Nc5 {[%emt 0:00:27]} 12. Qxd4 {[%emt 0:01:01]} (12. Nxd4 $2 Bxg2 13. Nb5 Bxf1 14. Nc7+ Ke7 15. Bd6+ Kd7 16. Bf4+ Ke7 17. Bd6+ Kd7 18. Bf4+ Ke7 $17) 12... Bd5 {[%emt 0:00:28]} 13. Ncd2 {[%emt 0:00:28]} Ncd7 $2 {[%emt 0:00:38]} (13... Be7 $16) 14. e4 {[%emt 0:00:13]} Bc5 {[%emt 0:00:02]} 15. Qd3 $36 {[%emt 0:00:07][%mdl 2048] White is on the roll.} Bc6 {[%emt 0:00:02]} 16. Rfc1 {[%emt 0:00:17]} O-O {[%emt 0:00:32] [#]} 17. Be3 $1 {[%emt 0:00:31]} Bxe3 {[%emt 0:00:32]} 18. Qxe3 {[%emt 0:00:00]} ({But not} 18. Rxc6 $6 Bxd2 19. Qxd2 Nxe4 20. Qxb4 Ndf6 $14) 18... Rc8 {[%emt 0:00:39]} (18... Bb5 $142 19. Qb3 Rb8) 19. Qxa7 $18 {[%emt 0:00:13]} Nxe4 {[%emt 0:00:31][%cal Oe4c5] [#] Threatens to win with ...Nec5!} 20. Rxc6 {[%mdl 512]} Nxd2 {[%emt 0:00:02]} (20... Rxc6 21. Nxe4) 21. Nxd2 {[%emt 0:00:42]} Rxc6 {[%emt 0:00:03]} 22. Bxc6 {[%emt 0:00:01]} Ne5 {[%emt 0:00:01]} (22... Nb8 {is tougher.} 23. Qb7 Qxd2) 23. Qc5 {[%emt 0:00:24][%csl LRb4,LRe5]} Nxc6 {[%emt 0:00:04]} 24. Qxc6 {And now Nc4 would win.} Qxd2 {[%emt 0:00:02][%mdl 4096] Endgame KQR-KQR} 25. a6 {[%emt 0:00:07]} Qxb2 {[%emt 0:00:02]} 26. Qa4 {[%emt 0:00:00]} (26. Ra4 $18) 26... h5 {[%emt 0:00:21]} 27. a7 {[%emt 0:00:02]} ({Better is} 27. Rd1 $11) 27... Ra8 $15 {[%emt 0:00:01] Black is more active.} 28. Kg2 {[%emt 0:00:07][%cal Oa4c6] [#]} Qd4 {[%emt 0:00:08]} ({Black should try} 28... Qc3 $1 $17) 29. Qa6 {[%emt 0:00:08]} (29. Rd1 $11 Qb6 30. Rd7) 29... Qd5+ {[%emt 0:00:06]} 30. Kg1 {[%emt 0:00:05]} b3 {[%emt 0:00:02][%cal Oh5h4]} 31. Qb6 $1 {[%emt 0:00:04] Prevents h4.} h4 {[%emt 0:00:07]} 32. gxh4 {[%emt 0:00:03]} (32. Qb8+ {is interesting.} Kh7 33. gxh4 f6 34. h5) 32... Kh7 {[%emt 0:00:05]} 33. Rb1 {[%emt 0:00:06]} (33. Qb8 {seems wilder.} f6 34. Rb1 Qh5 35. Rb2) 33... Qd7 {[%emt 0:00:04]} 34. Ra1 {[%emt 0:00:02]} (34. Qxb3 {simplifies} Rxa7 35. Qc2+ f5 36. Qe2) 34... Qd5 {[%emt 0:00:01]} 35. Qb4 {[%emt 0:00:03]} Qd7 $2 {[%emt 0:00:06][%mdl 8192]} (35... e5 $11) 36. Qb8 $2 {[%emt 0:00:02]} (36. Qxb3 Rxa7 37. Qb1+ f5 $11) ({White must play} 36. Qe4+ $18 f5 37. Qxa8) 36... b2 $11 {[%emt 0:00:06] Really sharp!} 37. Qxb2 {[%emt 0:00:05] Qb1+ is the strong threat.} Rxa7 {[%emt 0:00:00]} 38. Qc2+ {[%emt 0:00:03]} (38. Rxa7 {simplifies} Qxa7 39. Qc2+ f5 40. Kg2) 38... g6 {[%emt 0:00:02]} (38... f5 {simplifies} 39. Rxa7 Qxa7 40. Kg2 Qe7) 39. Rd1 {[%emt 0:00:03]} (39. Rxa7 $11 Qxa7 40. h5) 39... Qb5 {[%emt 0:00:03]} 40. Qc3 {[%emt 0:00:03]} Rd7 {[%emt 0:00:04]} (40... Qe2 $17 41. Ra1 Rxa1+ 42. Qxa1 Qg4+ 43. Kf1 Qc4+ 44. Kg1 Qxh4) 41. Ra1 {[%emt 0:00:02]} (41. Rxd7 $11 {remains equal.} Qxd7 42. Kg2) 41... Qh5 $17 {[%emt 0:00:03]} 42. Qg3 {[%emt 0:00:06]} Rd4 {[%emt 0:00:03] Inhibits Qf4. Strongly threatening ...Rg4.} 43. Ra8 $2 {[%emt 0:00:01][%mdl 8192]} (43. h3 $17) 43... Rg4 {[%emt 0:00:02] What a fight!   Weighted Error Value: White=0.64/Black=0.36} ({Weaker is} 43... Qxh4 44. Qxh4+ Rxh4 45. Rc8 $17) (43... Rxh4 $2 {is the wrong capture.} 44. f3 $19) 0-1

[Event "1st Kallai Gabor Memorial Blitz 2022"]
[Site "Budapest"]
[Date "2022.12.01"]
[Round "1.5"]
[White "Troff, Kayden"]
[Black "Horvath, Csaba"]
[Result "1-0"]
[ECO "A47"]
[WhiteElo "2483"]
[BlackElo "2502"]
[Annotator "TA"]
[PlyCount "53"]
[EventDate "2022.12.01"]
[EventType "blitz"]
[EventCountry "HUN"]
[SourceTitle "playchess.com"]
[Source "ChessBase"]
[SourceQuality "1"]
[TimeControl "300+3"]

{[%evp 10,53,4,4,0,0,0,0,3,-7,28,0,0,-17,-17,-21,0,-7,0,-45,-10,-25,-13,-4,0,-10,100,92,101,114,109,77,353,347,378,361,394,225,231,219,189,45,84,85,436,427]} 1. d4 {[%emt 0:00:04]} Nf6 {[%emt 0:00:04]} 2. Nf3 {[%emt 0:00:01]} b6 {[%emt 0:00:02]} 3. Bf4 {[%emt 0:00:05]} Bb7 {[%emt 0:00:01]} 4. Nbd2 {[%emt 0:00:02]} g6 {[%emt 0:00:02]} 5. e3 {[%emt 0:00:02]} Bg7 {[%emt 0:00:01]} 6. Bd3 {[%emt 0:00:07]} d6 {[%emt 0:00:02] A47: 1 d4 Nf6 2 Nf3 b6: Torre, London and Colle Systems.} 7. O-O {[%emt 0:00:03]} O-O {[%emt 0:00:02]} 8. c3 {[%emt 0:00:07]} Nbd7 {[%emt 0:00:02] [#] The position is equal.} 9. a4 $146 {[%emt 0:00:10]} ({Predecessor:} 9. Qe2 a6 10. Bg3 c5 11. e4 cxd4 12. cxd4 Nh5 13. Rac1 Nxg3 14. hxg3 e6 15. Qe3 {1-0 (53) Braun,A (2609)-Svidler,P (2723) Chess.com INT 2020}) 9... e5 {[%emt 0:00:09]} (9... Re8 $5 {[%cal Re7e5]} 10. Bg5 e5 $11) 10. Bg5 {[%emt 0:00:12]} a6 {[%emt 0:01:04]} 11. Bc4 {[%emt 0:00:25]} h6 {[%emt 0:00:07]} 12. Bh4 {[%emt 0:00:02]} e4 {[%emt 0:00:16]} 13. Ne1 {[%emt 0:00:01][%cal Bf3e1,Be1c2,Bc2e3][%mdl 32]} c5 {[%emt 0:00:19]} 14. Ba2 {[%emt 0:00:02]} d5 {[%emt 0:00:06]} (14... b5 {looks sharper.} 15. Nc2 Re8 16. Qe2 c4) 15. c4 {[%emt 0:00:12]} cxd4 {[%emt 0:00:03]} (15... b5 {seems wilder.} 16. cxd5 Qb6 17. a5 Qa7) 16. exd4 {[%emt 0:00:01]} g5 {[%emt 0:01:16]} 17. Bg3 {[%emt 0:00:01]} Qe7 {[%emt 0:00:02]} (17... Ne8 $11) 18. Nc2 $16 {[%emt 0:00:03]} Rfe8 {[%emt 0:00:20]} 19. Re1 {[%emt 0:00:16]} Qe6 20. Ne3 {[%emt 0:00:15][%cal Oa4a5]} Nh7 $2 {[%emt 0:00:16][%mdl 8192]} (20... b5 $16) 21. cxd5 $18 {[%emt 0:00:38]} ({Less strong is} 21. Nxd5 Bxd5 22. cxd5 Qf6 $18) 21... Qg6 {[%emt 0:00:01]} 22. Ndc4 {[%emt 0:00:20]} f5 {[%emt 0:00:09][%cal Bf7f5,Bf5f4][%mdl 32] [#]} 23. Nd6 {[%emt 0:00:02] Prevents f4.} (23. Nxf5 $142 $1 {[%mdl 512]} Bxd5 (23... Qxf5 24. Nd6) 24. Ne5) 23... f4 {[%emt 0:00:10]} 24. Nxb7 {[%emt 0:00:01]} Rab8 {[%emt 0:00:15] [#]} 25. Qg4 {[%emt 0:00:03]} Nhf6 {[%emt 0:00:07] [#]} 26. Qf5 {[%emt 0:00:08]} Kh7 {[%emt 0:00:00][%mdl 8192]} (26... Qxf5 $16 27. Nxf5 Rxb7) 27. Nd6 {[%emt 0:00:06] Weighted Error Value: White=0.28 (precise) /Black=0.47} 1-0